fUST/lending_fUST_20241113
["ID","MTS","AMOUNT","RATE_DAILY","PERIOD"]
[342137127,1731499865031,-1603.1,0.00021989,2]
[342137128,1731499865046,-500.0,0.00021989,2]
[342137129,1731499865060,-626.41,0.00021989,2]
[342137130,1731499865075,-564.51,0.00021989,2]
[342137131,1731499865089,-500.0,0.00021989,2]
[342137132,1731499865104,-500.0,0.00021989,2]
[342137133,1731499865119,-500.0,0.00021989,2]
[342137134,1731499865133,-500.0,0.00021989,2]
[342137135,1731499865148,-500.0,0.00021989,2]
[342137136,1731499865161,-546.36,0.00021989,2]
[342137137,1731499865176,-500.0,0.00021989,2]
[342137138,1731499865191,-537.55,0.00021989,2]
[342137139,1731499865205,-500.0,0.00021989,2]
[342137140,1731499865219,-273.64852599,0.00021989,2]
[342137141,1731499865238,-500.0,0.00021989,2]
[342137142,1731499865253,-500.0,0.00021989,2]
[342137143,1731499865268,-500.0,0.00021989,2]
[342137144,1731499865282,-538.72360568,0.00021989,2]
[342137145,1731499865297,-877.96,0.00021989,2]
[342137146,1731499865311,-500.0,0.00021989,2]
[342137147,1731499865325,-541.14,0.00021989,2]
[342137148,1731499865339,-500.0,0.00021989,2]
[342137149,1731499865355,-3000.0,0.0002199,2]
[342137150,1731499865369,-500.0,0.0002199,2]
[342137151,1731499865383,-2139.54,0.0002199,2]
[342137152,1731499865400,-1045.64,0.0002199,2]
[342137153,1731499865413,-500.0,0.0002199,2]
[342137154,1731499865427,-500.0,0.0002199,2]
[342137155,1731499865442,-10091.16649203,0.00022,2]
[342137156,1731499865456,-75687.53929562,0.00022,30]
[342137157,1731499865471,-195.489534,0.00022,7]
[342137158,1731499865489,-3000.0,0.00022,2]
[342137159,1731499865503,-12078.52524984,0.0002201,16]
[342137160,1731499865517,-3000.0,0.0002201,2]
[342137161,1731499865531,-3000.0,0.0002202,2]
[342137162,1731499865642,-1847.22225,0.00022023,2]
[342137163,1731499865651,-183.027,0.00022023,2]
[342137164,1731499865660,-235.29175,0.00022023,2]
[342137165,1731499865670,-202.88361676,0.00022023,2]
[342137166,1731499865678,-507.97101391,0.00022023,2]
[342137167,1731499865687,-3000.0,0.0002203,2]
[342137168,1731499865696,-3000.0,0.0002204,2]
[342137169,1731499865706,-3000.0,0.0002205,2]
[342137170,1731499865715,-3000.0,0.0002206,2]
[342137171,1731499865724,-3000.0,0.0002207,2]
[342137172,1731499865735,-500.0,0.00022072,2]
[342137173,1731499865744,-506.10548366,0.00022072,2]
[342137174,1731499865753,-500.0,0.00022072,2]
[342137175,1731499865762,-500.0,0.00022072,2]
[342137176,1731499865771,-500.0,0.00022072,2]
[342137177,1731499865780,-500.0,0.00022072,2]
[342137178,1731499865789,-500.0,0.00022072,2]
[342137179,1731499865798,-500.0,0.00022072,2]
[342137180,1731499865808,-500.0,0.00022072,2]
[342137181,1731499865817,-541.39688785,0.00022072,2]
[342137182,1731499865826,-500.0,0.00022072,2]
[342137183,1731499865835,-500.0,0.00022072,2]
[342137184,1731499865845,-500.0,0.00022072,2]
[342137185,1731499865854,-500.0,0.00022072,2]
[342137186,1731499865863,-500.0,0.00022072,2]
[342137187,1731499865872,-500.0,0.00022072,2]
[342137188,1731499865882,-500.0,0.00022072,2]
[342137189,1731499865891,-500.0,0.00022072,2]
[342137190,1731499865900,-500.0,0.00022072,2]
[342137191,1731499865909,-500.0,0.00022072,2]
[342137192,1731499865918,-500.0,0.00022072,2]
[342137193,1731499865927,-500.0,0.00022072,2]
[342137194,1731499865936,-500.0,0.00022072,2]
[342137195,1731499865945,-253.72222528,0.00022072,2]
[342137196,1731499865955,-500.0,0.00022072,2]
[342137197,1731499865964,-500.0,0.00022072,2]
[342137198,1731499865973,-500.0,0.00022072,2]
[342137199,1731499865984,-500.0,0.00022072,2]
[342137200,1731499865993,-500.0,0.00022072,2]
[342137201,1731499866002,-500.0,0.00022072,2]
[342137202,1731499866011,-500.0,0.00022072,2]
[342137203,1731499866020,-519.94282277,0.00022072,2]
[342137204,1731499866029,-196.2037668,0.00022072,2]
[342137205,1731499866038,-500.0,0.00022072,2]
[342137206,1731499866048,-500.0,0.00022072,2]
[342137207,1731499866057,-445.8498394,0.00022072,2]
[342137208,1731499866066,-393.32739289,0.00022072,2]
[342137209,1731499866075,-500.0,0.00022072,2]
[342137210,1731499866084,-508.49334276,0.00022072,2]
[342137211,1731499866093,-500.0,0.00022072,2]
[342137212,1731499866102,-500.0,0.00022072,2]
[342137213,1731499866111,-509.71800799,0.00022072,2]
[342137214,1731499866121,-503.4530562,0.00022072,2]
[342137215,1731499866130,-500.0,0.00022072,2]
[342137216,1731499866139,-500.0,0.00022072,2]
[342137217,1731499866148,-506.07364616,0.00022072,2]
[342137218,1731499866158,-500.0,0.00022072,2]
[342137219,1731499866167,-500.0,0.00022072,2]
[342137220,1731499866176,-502.19911104,0.00022072,2]
[342137221,1731499866186,-500.0,0.00022072,2]
[342137222,1731499866195,-500.0,0.00022072,2]
[342137223,1731499866204,-507.88556878,0.00022072,2]
[342137224,1731499866214,-500.0,0.00022072,2]
[342137225,1731499866223,-500.0,0.00022072,2]
[342137226,1731499866234,-500.0,0.00022072,2]
[342137227,1731499866243,-500.0,0.00022072,2]
[342137228,1731499866253,-162.93396498,0.00022072,2]
[342137229,1731499866263,-500.0,0.00022072,2]
[342137230,1731499866272,-519.87125659,0.00022072,2]
[342137231,1731499866282,-500.0,0.00022072,2]
[342137232,1731499866291,-582.43023635,0.00022072,2]
[342137233,1731499866300,-501.85782815,0.00022072,2]
[342137234,1731499866310,-500.0,0.00022072,2]
[342137235,1731499866319,-500.0,0.00022072,2]
[342137236,1731499866329,-509.39843063,0.00022072,2]
[342137237,1731499866338,-527.22747221,0.00022072,2]
[342137238,1731499866347,-500.0,0.00022072,2]
[342137239,1731499866356,-527.12674936,0.00022072,2]
[342137240,1731499866365,-508.52187518,0.00022072,2]
[342137241,1731499866375,-633.74675921,0.00022072,2]
[342137242,1731499866385,-500.0,0.00022072,2]
[342137243,1731499866398,-500.0,0.00022072,2]
[342137244,1731499866408,-500.0,0.00022072,2]
[342137245,1731499866417,-227.31199333,0.00022072,2]
[342137246,1731499866429,-502.33549684,0.00022072,2]
[342137247,1731499866438,-500.0,0.00022072,2]
[342137248,1731499866447,-510.59988417,0.00022072,2]
[342137249,1731499866456,-545.5,0.00022072,2]
[342137250,1731499866467,-503.50430339,0.00022072,2]
[342137251,1731499866476,-500.0,0.00022072,2]
[342137252,1731499866488,-571.53191138,0.00022072,2]
[342137253,1731499866497,-505.51209579,0.00022072,2]
[342137254,1731499866506,-580.25390447,0.00022072,2]
[342137255,1731499866515,-500.0,0.00022072,2]
[342137256,1731499866525,-313.92572247,0.00022072,2]
[342137257,1731499866534,-500.0,0.00022072,2]
[342137258,1731499866543,-524.7486356,0.00022072,2]
[342137259,1731499866552,-537.91718395,0.00022072,2]
[342137260,1731499866562,-500.0,0.00022072,2]
[342137261,1731499866570,-503.08215783,0.00022072,2]
[342137262,1731499866580,-371.00433467,0.00022072,2]
[342137263,1731499866589,-500.0,0.00022072,2]
[342137264,1731499866598,-500.0,0.00022072,2]
[342137265,1731499866608,-500.0,0.00022072,2]
[342137266,1731499866617,-879.56,0.00022072,2]
[342137267,1731499866626,-500.0,0.00022072,2]
[342137268,1731499866634,-345.42587799,0.00022072,2]
[342137269,1731499866643,-500.9408467,0.00022072,2]
[342137270,1731499866653,-500.0,0.00022072,2]
[342137271,1731499866662,-500.0,0.00022072,2]
[342137272,1731499866671,-328.18587147,0.00022072,2]
[342137273,1731499866680,-500.0,0.00022072,2]
[342137274,1731499866689,-500.0,0.00022072,2]
[342137275,1731499866698,-500.0,0.00022072,2]
[342137276,1731499866707,-500.0,0.00022072,2]
[342137277,1731499866717,-513.94476842,0.00022072,2]
[342137278,1731499866727,-500.0,0.00022072,2]
[342137279,1731499866738,-500.0,0.00022072,2]
[342137280,1731499866748,-500.0,0.00022072,2]
[342137281,1731499866757,-500.0,0.00022072,2]
[342137282,1731499866766,-500.0,0.00022072,2]
[342137283,1731499866775,-527.89075688,0.00022072,2]
[342137284,1731499866785,-500.0,0.00022072,2]
[342137285,1731499866794,-500.0,0.00022072,2]
[342137286,1731499866804,-500.0,0.00022072,2]
[342137287,1731499866813,-343.82690883,0.00022072,2]
[342137288,1731499866823,-500.0,0.00022072,2]
[342137289,1731499866832,-500.0,0.00022072,2]
[342137290,1731499866841,-500.0,0.00022072,2]
[342137291,1731499866851,-500.0,0.00022072,2]
[342137292,1731499866860,-500.0,0.00022072,2]
[342137293,1731499866869,-500.0,0.00022072,2]
[342137294,1731499866879,-500.0,0.00022072,2]
[342137295,1731499866888,-3000.0,0.0002208,2]
[342137296,1731499866897,-507.31064826,0.0002209,2]
[342137297,1731499866907,-630.46633587,0.0002209,2]
[342137298,1731499866916,-484.56112152,0.0002209,2]
[342137299,1731499866925,-500.0,0.0002209,2]
[342137300,1731499866935,-500.0,0.0002209,2]
[342137301,1731499866944,-500.0,0.0002209,2]
[342137302,1731499866953,-214.84237317,0.0002209,2]
[342137303,1731499866962,-500.0,0.0002209,2]
[342137304,1731499866971,-195.489534,0.0002209,7]
[342137305,1731499866984,-636.97785474,0.0002209,2]
[342137307,1731499867074,-313.95888321,0.0002209,2]
[342137308,1731499867083,-500.0,0.0002209,2]
[342137309,1731499867092,-500.0,0.0002209,2]
[342137310,1731499867101,-933.01,0.0002209,2]
[342137311,1731499867111,-517.54262047,0.0002209,2]
[342137312,1731499867120,-500.0,0.0002209,2]
[342137313,1731499867129,-500.0,0.0002209,2]
[342137314,1731499867138,-504.41,0.0002209,2]
[342137315,1731499867148,-607.97,0.0002209,2]
[342137316,1731499867157,-1115.11,0.0002209,2]
[342137317,1731499867166,-500.0,0.0002209,2]
[342137318,1731499867175,-500.0,0.0002209,2]
[342137319,1731499867184,-864.63,0.0002209,2]
[342137320,1731499867193,-500.0,0.0002209,2]
[342137321,1731499867202,-3040.487467,0.0002209,2]
[342137322,1731499867212,-500.0,0.0002209,2]
[342137323,1731499867221,-500.0,0.0002209,2]
[342137324,1731499867231,-501.99595608,0.0002209,2]
[342137325,1731499867240,-500.0,0.0002209,2]
[342137326,1731499867249,-500.0,0.0002209,2]
[342137327,1731499867259,-503.75474527,0.0002209,2]
[342137328,1731499867269,-500.0,0.0002209,2]
[342137329,1731499867278,-500.0,0.0002209,2]
[342137330,1731499867287,-543.86795001,0.0002209,2]
[342137331,1731499867296,-500.0,0.0002209,2]
[342137332,1731499867305,-500.0,0.0002209,2]
[342137333,1731499867315,-503.51077637,0.0002209,2]
[342137334,1731499867324,-500.0,0.0002209,2]
[342137335,1731499867333,-500.0,0.0002209,2]
[342137336,1731499867342,-165.0399028,0.0002209,2]
[342137337,1731499867351,-509.01780152,0.0002209,2]
[342137338,1731499867360,-500.0,0.0002209,2]
[342137339,1731499867370,-500.0,0.0002209,2]
[342137340,1731499867379,-500.0,0.00022119,2]
[342137341,1731499867391,-500.0,0.00022119,2]
[342137342,1731499867399,-500.0,0.00022119,2]
[342137343,1731499867409,-500.0,0.00022119,2]
[342137344,1731499867418,-232.69773125,0.00022119,2]
[342137345,1731499867429,-500.0,0.00022119,2]
[342137346,1731499867438,-500.0,0.00022119,2]
[342137347,1731499867447,-500.0,0.00022119,2]
[342137348,1731499867458,-500.0,0.00022119,2]
[342137349,1731499867467,-500.0,0.00022119,2]
[342137350,1731499867477,-490.83046293,0.00022119,2]
[342137351,1731499867489,-500.0,0.00022119,2]
[342137352,1731499867498,-168.46604938,0.00022191,2]
[342137353,1731499867507,-251.90667487,0.00022191,2]
[342137354,1731499867516,-157.6733871,0.00022191,2]
[342137355,1731499867526,-500.0,0.00022191,2]
[342137356,1731499867535,-500.0,0.00022191,2]
[342137357,1731499867544,-500.0,0.00022191,2]
[342137358,1731499867554,-500.0,0.00022191,2]
[342137359,1731499867563,-500.0,0.00022191,2]
[342137360,1731499867572,-195.489532,0.00022191,7]
[342137361,1731499867581,-507.85021356,0.00022195,2]
[342137362,1731499867594,-500.0,0.00022195,2]
[342137363,1731499867603,-500.0,0.00022195,2]
[342137364,1731499867613,-514.2240371,0.00022195,2]
[342137365,1731499867622,-664.1,0.00022195,2]
[342137366,1731499867632,-500.0,0.00022195,2]
[342137367,1731499867641,-500.0,0.00022195,2]
[342137368,1731499867651,-500.0,0.00022195,2]
[342137369,1731499867660,-500.0,0.00022195,2]
[342137370,1731499867670,-500.0,0.00022195,2]
[342137371,1731499867679,-500.0,0.00022195,2]
[342137372,1731499867688,-500.0,0.00022195,2]
[342137373,1731499867698,-500.0,0.00022195,2]
[342137374,1731499867707,-500.0,0.00022195,2]
[342137375,1731499867716,-500.0,0.00022195,2]
[342137376,1731499867725,-500.0,0.00022195,2]
[342137377,1731499867737,-500.0,0.00022195,2]
[342137378,1731499867747,-500.0,0.00022195,2]
[342137379,1731499867757,-500.0,0.00022195,2]
[342137380,1731499867766,-500.0,0.00022195,2]
[342137381,1731499867775,-500.0,0.00022195,2]
[342137382,1731499867785,-406.33501332,0.00022195,2]
[342137383,1731499867794,-500.0,0.00022195,2]
[342137384,1731499867803,-500.0,0.00022195,2]
[342137385,1731499867812,-500.0,0.00022195,2]
[342137386,1731499867821,-519.43,0.00022195,2]
[342137387,1731499867831,-500.0,0.00022195,2]
[342137388,1731499867839,-500.0,0.00022195,2]
[342137389,1731499867849,-500.0,0.00022195,2]
[342137390,1731499867858,-500.0,0.00022195,2]
[342137391,1731499867867,-500.0,0.00022195,2]
[342137392,1731499867877,-500.0,0.00022195,2]
[342137393,1731499867886,-500.0,0.00022195,2]
[342137394,1731499867895,-500.0,0.00022195,2]
[342137395,1731499867904,-500.0,0.00022195,2]
[342137396,1731499867914,-500.0,0.00022195,2]
[342137397,1731499867923,-472.35525,0.00022218,2]
[342137398,1731499867933,-500.0,0.00022247,2]
[342137399,1731499867942,-1300.83,0.00022247,2]
[342137400,1731499867952,-500.0,0.00022247,2]
[342137401,1731499867961,-500.0,0.00022247,2]
[342137402,1731499867970,-500.0,0.00022247,2]
[342137403,1731499867982,-500.0,0.00022247,2]
[342137404,1731499867993,-500.0,0.00022247,2]
[342137405,1731499868003,-500.0,0.00022247,2]
[342137406,1731499868013,-500.0,0.00022247,2]
[342137407,1731499868024,-784.96,0.00022262,2]
[342137408,1731499868034,-500.0,0.00022262,2]
[342137409,1731499868043,-500.0,0.00022262,2]
[342137410,1731499868052,-6930.32,0.00022262,2]
[342137411,1731499868062,-1605.83,0.00022262,2]
[342137412,1731499868071,-1070.28,0.00022262,2]
[342137413,1731499868081,-1111.56,0.00022262,2]
[342137414,1731499868090,-1195.06,0.00022262,2]
[342137415,1731499868100,-500.0,0.00022263,2]
[342137416,1731499868109,-500.0,0.00022263,2]
[342137417,1731499868119,-555.70985714,0.00022263,2]
[342137418,1731499868128,-500.0,0.00022263,2]
[342137419,1731499868137,-514.25,0.00022263,2]
[342137420,1731499868147,-500.0,0.00022263,2]
[342137421,1731499868156,-500.0,0.00022263,2]
[342137422,1731499868165,-500.0,0.00022263,2]
[342137423,1731499868175,-500.0,0.00022263,2]
[342137424,1731499868184,-500.0,0.00022263,2]
[342137425,1731499868193,-175.78835612,0.00022263,2]
[342137426,1731499868203,-500.0,0.00022263,2]
[342137427,1731499868212,-523.42,0.00022263,2]
[342137428,1731499868222,-500.0,0.00022263,2]
[342137429,1731499868234,-700.85,0.00022263,2]
[342137430,1731499868243,-508.83586418,0.00022263,2]
[342137431,1731499868253,-500.0,0.00022263,2]
[342137432,1731499868262,-500.0,0.00022263,2]
[342137433,1731499868271,-500.0,0.00022263,2]
[342137434,1731499868283,-500.0,0.00022263,2]
[342137435,1731499868292,-606.49415694,0.00022263,2]
[342137436,1731499868303,-500.0,0.00022263,2]
[342137437,1731499868312,-500.0,0.00022263,2]
[342137438,1731499868321,-500.0,0.00022263,2]
[342137439,1731499868331,-505.9581633,0.00022263,2]
[342137440,1731499868414,-500.0,0.00022263,2]
[342137441,1731499868424,-510.65189682,0.00022263,2]
[342137442,1731499868435,-500.0,0.00022263,2]
[342137443,1731499868445,-2334.98,0.00022263,2]
[342137444,1731499868454,-500.0,0.00022263,2]
[342137445,1731499868464,-565.83,0.00022263,2]
[342137446,1731499868474,-500.0,0.00022263,2]
[342137447,1731499868488,-590.92,0.00022263,2]
[342137448,1731499868498,-783.61,0.00022263,2]
[342137449,1731499868507,-500.0,0.00022263,2]
[342137450,1731499868517,-500.0,0.00022263,2]
[342137451,1731499868526,-3561.14,0.00022263,2]
[342137452,1731499868534,-500.0,0.00022263,2]
[342137453,1731499868543,-500.0,0.00022263,2]
[342137454,1731499868552,-500.0,0.00022263,2]
[342137455,1731499868561,-1692.17,0.00022263,2]
[342137456,1731499868570,-514.60466191,0.00022263,2]
[342137457,1731499868580,-500.0,0.00022263,2]
[342137458,1731499868589,-500.0,0.00022263,2]
[342137459,1731499868598,-500.0,0.00022263,2]
[342137460,1731499868607,-500.0,0.00022263,2]
[342137461,1731499868616,-500.0,0.00022263,2]
[342137462,1731499868626,-500.0,0.00022263,2]
[342137463,1731499868635,-1603.1,0.00022263,2]
[342137464,1731499868644,-500.0,0.00022263,2]
[342137465,1731499868654,-500.0,0.00022263,2]
[342137466,1731499868663,-626.41,0.00022263,2]
[342137467,1731499868672,-564.51,0.00022263,2]
[342137468,1731499868682,-500.0,0.00022263,2]
[342137469,1731499868692,-500.0,0.00022263,2]
[342137470,1731499868701,-500.0,0.00022263,2]
[342137471,1731499868710,-500.0,0.00022263,2]
[342137472,1731499868720,-500.0,0.00022263,2]
[342137473,1731499868731,-546.36,0.00022263,2]
[342137474,1731499868740,-500.0,0.00022263,2]
[342137475,1731499868750,-537.55,0.00022263,2]
[342137476,1731499868759,-500.0,0.00022263,2]
[342137477,1731499868768,-500.0,0.00022263,2]
[342137478,1731499868777,-500.0,0.00022263,2]
[342137479,1731499868787,-500.0,0.00022263,2]
[342137480,1731499868796,-877.96,0.00022263,2]
[342137481,1731499868805,-500.0,0.00022263,2]
[342137482,1731499868814,-541.14,0.00022263,2]
[342137483,1731499868824,-500.0,0.00022263,2]
[342137484,1731499868833,-500.0,0.00022264,2]
[342137485,1731499868842,-2139.54,0.00022264,2]
[342137486,1731499868851,-1045.64,0.00022264,2]
[342137487,1731499868861,-500.0,0.00022264,2]
[342137488,1731499868871,-500.0,0.00022264,2]
[342137489,1731499868879,-663.0526242,0.000223,2]
[342137490,1731499868889,-1000.0,0.00022321,2]
[342137491,1731499868898,-1000.0,0.00022321,2]
[342137492,1731499868907,-500.89685808,0.00022321,2]
[342137493,1731499868917,-1000.0,0.00022321,2]
[342137494,1731499868927,-501.04825485,0.00022321,2]
[342137495,1731499868935,-500.41616203,0.00022321,2]
[342137496,1731499868945,-1000.0,0.00022321,2]
[342137497,1731499868955,-500.76417924,0.00022321,2]
[342137498,1731499868963,-403.5298767,0.00022329,2]
[342137499,1731499868972,-455.6663275,0.00022329,2]
[342137500,1731499868984,-510.9767832,0.00022329,2]
[342137501,1731499868993,-538.85312042,0.00022346,2]
[342137502,1731499869002,-500.0,0.00022346,2]
[342137503,1731499869011,-500.0,0.00022346,2]
[342137504,1731499869021,-500.0,0.00022346,2]
[342137505,1731499869030,-500.0,0.00022346,2]
[342137506,1731499869039,-500.0,0.00022346,2]
[342137507,1731499869048,-505.20881976,0.00022346,2]
[342137508,1731499869058,-500.0,0.00022346,2]
[342137509,1731499869067,-500.0,0.00022346,2]
[342137510,1731499869076,-500.0,0.00022346,2]
[342137511,1731499869085,-500.0,0.00022346,2]
[342137512,1731499869095,-427.36687496,0.00022346,2]
[342137513,1731499869105,-500.0,0.00022346,2]
[342137514,1731499869114,-218.62629603,0.00022346,2]
[342137515,1731499869123,-500.0,0.00022346,2]
[342137516,1731499869133,-500.0,0.00022346,2]
[342137517,1731499869142,-500.0,0.00022346,2]
[342137518,1731499869151,-500.0,0.00022346,2]
[342137519,1731499869161,-500.0,0.00022346,2]
[342137520,1731499869171,-500.88282435,0.00022346,2]
[342137521,1731499869180,-500.0,0.00022346,2]
[342137522,1731499869189,-500.0,0.00022346,2]
[342137523,1731499869198,-310.3678247,0.00022346,2]
[342137524,1731499869208,-502.09060172,0.00022346,2]
[342137525,1731499869217,-500.0,0.00022346,2]
[342137526,1731499869226,-500.0,0.00022346,2]
[342137527,1731499869237,-500.0,0.00022346,2]
[342137528,1731499869246,-500.0,0.00022346,2]
[342137529,1731499869255,-500.0,0.00022346,2]
[342137530,1731499869264,-500.0,0.00022346,2]
[342137531,1731499869273,-500.0,0.00022346,2]
[342137532,1731499869282,-500.0,0.00022346,2]
[342137533,1731499869292,-500.0,0.00022346,2]
[342137534,1731499869301,-504.72743211,0.00022346,2]
[342137535,1731499869310,-500.0,0.00022346,2]
[342137536,1731499869319,-500.0,0.00022346,2]
[342137537,1731499869327,-500.0,0.00022346,2]
[342137538,1731499869336,-500.0,0.00022346,2]
[342137539,1731499869346,-500.0,0.00022346,2]
[342137540,1731499869355,-500.0,0.00022346,2]
[342137541,1731499869364,-500.0,0.00022346,2]
[342137542,1731499869374,-500.0,0.00022346,2]
[342137543,1731499869383,-502.0681302,0.00022346,2]
[342137544,1731499869396,-500.0,0.00022346,2]
[342137545,1731499869405,-625.36044857,0.00022346,2]
[342137546,1731499869414,-500.0,0.00022346,2]
[342137547,1731499869424,-500.0,0.00022346,2]
[342137548,1731499869434,-500.0,0.00022346,2]
[342137549,1731499869443,-409.44489837,0.00022346,2]
[342137550,1731499869452,-500.0,0.00022346,2]
[342137551,1731499869462,-500.0,0.00022346,2]
[342137552,1731499869471,-502.42859483,0.00022346,2]
[342137553,1731499869483,-545.5,0.00022346,2]
[342137554,1731499869492,-500.0,0.00022346,2]
[342137555,1731499869501,-500.0,0.00022346,2]
[342137556,1731499869511,-500.0,0.00022346,2]
[342137557,1731499869520,-512.65529875,0.00022346,2]
[342137558,1731499869529,-500.0,0.00022346,2]
[342137559,1731499869539,-523.94075024,0.00022346,2]
[342137560,1731499869548,-513.35467457,0.00022346,2]
[342137561,1731499869558,-879.56,0.00022346,2]
[342137562,1731499869636,-500.0,0.00022346,2]
[342137563,1731499869646,-505.81714606,0.00022346,2]
[342137564,1731499869655,-546.89086846,0.00022346,2]
[342137565,1731499869664,-500.0,0.00022346,2]
[342137566,1731499869673,-344.68188529,0.00022346,2]
[342137567,1731499869682,-500.0,0.00022346,2]
[342137568,1731499869691,-500.0,0.00022346,2]
[342137569,1731499869701,-504.46787636,0.00022346,2]
[342137570,1731499869710,-351.10539747,0.00022346,2]
[342137571,1731499869720,-304.36200098,0.00022346,2]
[342137572,1731499869732,-500.0,0.00022346,2]
[342137573,1731499869742,-225.61283699,0.00022346,2]
[342137574,1731499869750,-500.0,0.00022346,2]
[342137575,1731499869760,-504.85457201,0.00022346,2]
[342137576,1731499869769,-503.07479172,0.00022346,2]
[342137577,1731499869779,-510.20970037,0.00022346,2]
[342137578,1731499869787,-500.0,0.00022346,2]
[342137579,1731499869797,-503.35565406,0.00022346,2]
[342137580,1731499869806,-500.0,0.00022346,2]
[342137581,1731499869815,-500.0,0.00022346,2]
[342137582,1731499869824,-176.74330471,0.00022346,2]
[342137583,1731499869832,-503.50143924,0.00022346,2]
[342137584,1731499869841,-500.0,0.00022364,2]
[342137585,1731499869850,-500.0,0.00022364,2]
[342137586,1731499869859,-500.0,0.00022364,2]
[342137587,1731499869868,-564.28817649,0.00022364,2]
[342137588,1731499869878,-500.0,0.00022364,2]
[342137589,1731499869887,-500.0,0.00022364,2]
[342137590,1731499869896,-933.01,0.00022364,2]
[342137591,1731499869905,-500.0,0.00022364,2]
[342137592,1731499869914,-500.0,0.00022364,2]
[342137593,1731499869923,-504.41,0.00022364,2]
[342137594,1731499869931,-607.97,0.00022364,2]
[342137595,1731499869940,-1115.11,0.00022364,2]
[342137596,1731499869949,-543.2119677,0.00022364,2]
[342137597,1731499869958,-500.0,0.00022364,2]
[342137598,1731499869967,-864.63,0.00022364,2]
[342137599,1731499869976,-500.0,0.00022364,2]
[342137600,1731499869988,-500.0,0.00022364,2]
[342137601,1731499869997,-500.0,0.00022364,2]
[342137602,1731499870006,-500.0,0.00022364,2]
[342137603,1731499870015,-500.0,0.00022364,2]
[342137604,1731499870024,-500.0,0.00022364,2]
[342137605,1731499870033,-500.0,0.00022364,2]
[342137606,1731499870042,-500.0,0.00022364,2]
[342137607,1731499870050,-500.0,0.00022364,2]
[342137608,1731499870060,-500.0,0.00022364,2]
[342137609,1731499870069,-500.0,0.00022364,2]
[342137610,1731499870077,-500.0,0.00022364,2]
[342137611,1731499870086,-500.0,0.00022364,2]
[342137612,1731499870095,-500.0,0.00022393,2]
[342137613,1731499870104,-500.0,0.00022393,2]
[342137614,1731499870113,-500.0,0.00022393,2]
[342137615,1731499870123,-500.0,0.00022393,2]
[342137616,1731499870131,-500.0,0.00022393,2]
[342137617,1731499870141,-500.0,0.00022393,2]
[342137618,1731499870156,-500.0,0.00022393,2]
[342137619,1731499870172,-500.0,0.00022393,2]
[342137620,1731499870189,-500.0,0.00022393,2]
[342137621,1731499870207,-500.0,0.00022393,2]
[342137622,1731499870226,-1500.0,0.00022422,2]
[342137623,1731499870244,-500.0,0.00022465,2]
[342137624,1731499870262,-200.36831208,0.00022465,2]
[342137625,1731499870277,-564.73004992,0.00022465,2]
[342137626,1731499870293,-500.0,0.00022465,2]
[342137627,1731499870312,-800.76127103,0.00022465,2]